Cogmind - Beta 16 @@@ ROGUE MODE // 2025.12.25 @ 03:48:21 Player: tsintsir Result: Destroyed by H-55 Commando with Gauss Rifle Performance ------------- Evolutions (2) 1000 Regions Visited (4) 800 Robots Destroyed (35) 175 Value Destroyed (546) 546 Prototype IDs (0) 0 Alien Tech Used (0) 0 Bonus (200) 200 TOTAL SCORE: 2721 Bonus ------- Entered Garrisons 200 Cogmind --------- Core Integrity 0/550 Matter 243/300 Energy 79/100 System Corruption 0% Temperature Cool (0) Movement Core (50) Location -8/Garrison Parts ------- > --- POWER (2) -------- (None) > --- PROPULSION (5) --- (None) > --- UTILITY (2) ------ Hacking Suite > --- WEAPON (2) ------- (None) > --- INVENTORY (5) ---- Aluminum Leg Flight Unit Small Storage Unit Signal Interpreter Datajack Peak State ------------ > --- POWER ------------ Light Ion Engine > --- PROPULSION ------- Flight Unit Flight Unit Flight Unit Flight Unit > --- UTILITY ---------- Small Storage Unit Hacking Suite > --- WEAPON ----------- Mini Grenade Launcher > --- INVENTORY -------- Signal Interpreter Light Assault Rifle Datajack [Rating: 11] Favorites ----------- Power Ion Engine Engine Ion Engine Propulsion Flight Unit Leg Aluminum Leg Wheel Compact Wheel Hover Unit Hover Unit Flight Unit Flight Unit Utility Small Storage Unit Device Seismic Detector Storage Small Storage Unit Hackware Hacking Suite Weapon Light Assault Rifle Ballistic Gun Light Assault Rifle Launcher Mini Grenade Launcher Special Melee Weapon Datajack Build | -11 -10 -9 -8 -8 ------- Run | Yrd Mat Mat Mat Gar Slots Evolved 4 | . . 2 2 . Power 1 | . . . 1 . Propulsion 3 | . . 2 1 . Utility . | . . . . . Weapon . | . . . . . Parts Attached 23 | 7 7 3 3 3 Power 4 | 1 1 . 1 1 Engine 4 | 1 1 . 1 1 Core . | . . . . . Reactor . | . . . . . Propulsion 12 | 2 5 2 2 1 Treads . | . . . . . Leg 1 | . . . . 1 Wheel 2 | 2 . . . . Hover 2 | . 2 . . . Flight 7 | . 3 2 2 . Utility 3 | 2 1 . . . Device 1 | 1 . . . . Storage 1 | 1 . . . . Processor . | . . . . . Hackware 1 | . 1 . . . Protection . | . . . . . Artifact . | . . . . . Weapon 4 | 2 . 1 . 1 Energy Gun . | . . . . . Energy Cannon . | . . . . . Ballistic Gun 2 | 2 . . . . Ballistic Cannon . | . . . . . Launcher 1 | . . 1 . . Special Weapon . | . . . . . Impact Weapon . | . . . . . Slashing Weapon . | . . . . . Piercing Weapon . | . . . . . Special Melee Weapon 1 | . . . . 1 Unidentified Prototypes . | . . . . . Parts Lost 16 | . 5 2 2 7 Power 4 | . 1 1 . 2 Propulsion 8 | . 2 1 2 3 Utility 1 | . 1 . . . Weapon 3 | . 1 . . 2 Highest Loss Streak 6 | . 2 1 3 6 To Critical Strikes . | . . . . . Average Backups 3 | . 3 3 3 2 Power . | . . . . . Propulsion 1 | . 2 1 . . Utility . | . . . 1 1 Weapon . | . . 1 1 . Tool/Special . | . . . . . Unused Backups 7 | . 6 . . 1 Power 1 | . 1 . . . Propulsion 4 | . 4 . . . Utility 2 | . 1 . . 1 Weapon . | . . . . . Tool/Special . | . . . . . Average Slot Usage (%) 75 | . 85 73 60 50 Engine 7 | . 7 11 2 3 Wheel 3 | . 6 . . . Hover 4 | . 8 . . . Flight 21 | . 10 39 31 21 Device 3 | . 6 . . . Storage 11 | . 14 11 9 8 Hackware 6 | . 4 11 9 9 Ballistic Gun 14 | . 27 . . . Launcher 1 | . . . 9 5 Peak Build Rating 11 | 7 8 10 11 11 Average Rating 7 | 5 6 8 9 8 On Entrance 7 | . 7 7 10 11 Avg Prop Armor Cover (%) 8 | . . . . 8 Naked Turns . | . . . . . Heaviest Build 13 | 13 13 9 9 9 Greatest Support 32 | 32 32 16 16 16 Greatest Overweight (x) 2 | . 2 . . 1 Average Overweight (x) . | . . . . . Largest Inventory Capacity 8 | 8 8 8 8 8 Average Capacity 7 | 7 8 8 8 7 Most Carried 6 | 1 6 4 5 5 Average Carried 3 | . 3 3 3 2 Final Capacity 8 | 8 8 8 8 5 Final Carried 5 | 1 5 3 3 5 Class Distribution -------------------- 65% | Mutant 24% | Scavenger-Sprinter 10% | Scavenger-Mutant Dominant Class ---------------- Mutant | -10/Materials Scavenger-Sprinter | -9/Materials Mutant | -8/Materials Scavenger-Sprinter | -8/Garrison Resources | -11 -10 -9 -8 -8 ----------- Run | Yrd Mat Mat Mat Gar Matter Collected 605 | 300 174 . 21 110 Remotely . | . . . . . Salvage Created 776 | 139 526 28 23 60 Parts 60 | 10 30 9 4 7 Haulers Intercepted 2 | . 2 . . . Recyclers Shooed 2 | . 2 . . . Parts Field Recycled . | . . . . . Retrieved Matter . | . . . . . Parts Self-Destructed . | . . . . . Prevented . | . . . . . Parts Restored . | . . . . . Kills | -11 -10 -9 -8 -8 ------- Run | Yrd Mat Mat Mat Gar Combat Hostiles Destroyed 24 | . 9 6 3 6 Melee 1 | . . . . 1 Guns 9 | . 9 . . . AOE 14 | . . 6 3 5 Classes Destroyed 8 | 2 5 . . 1 Worker 1 | . 1 . . . Tunneler 4 | 4 . . . . Hauler 2 | . 2 . . . Recycler 3 | 1 2 . . . Operator 1 | . 1 . . . Swarmer 18 | . 6 6 3 3 Grunt 5 | . 3 . . 2 Programmer 1 | . . . . 1 Best Kill Streak 6 | 3 3 6 3 3 Combat Bots Only 6 | . 3 6 3 3 Max Kills in Single Turn 3 | 2 1 3 3 2 Gunslinging . | . . . . . Exploded 3 | . . 3 3 2 Melee 1 | . . . . 1 Uniques/NPCs Destroyed . | . . . . . Combat | -11 -10 -9 -8 -8 -------- Run | Yrd Mat Mat Mat Gar Hostile Shots Fired 175 | . 51 38 16 70 Missed 57 | . 14 18 7 18 Hits 118 | . 37 20 9 52 Projectile 118 | . 37 20 9 52 Critical Strikes 2 | . 1 . . 1 Damage Taken 1540 | . 474 203 133 730 Core 772 | . 133 85 59 495 Absorbed by Shields 72 | . . . . 72 Core Remaining (%) 74 | 100 46 78 . . Volleys Fired 99 | 15 69 2 1 12 Largest 2 | 2 2 1 1 1 Hottest 40 | 40 40 30 30 30 Shots Fired 181 | 30 136 2 1 12 Gun 168 | 30 136 . . 2 Cannon . | . . . . . Launcher 13 | . . 2 1 10 Special . | . . . . . Kinetic 168 | 30 136 . . 2 Thermal . | . . . . . Explosive 13 | . . 2 1 10 Electromagnetic . | . . . . . Robot Hit Streak 12 | 12 6 4 . 5 Robot Miss Streak 5 | 2 5 . 1 2 Penetration Max . | . . . . . Secondary Targets 1 | . 1 . . . Max Gunslinging Chain 1 | . 1 . . . Shots Hit Robots 111 | 21 78 2 . 10 Core Hits 65 | 11 30 5 6 13 Critical Kills . | . . . . . Critical Parts Destroyed . | . . . . . Critical Strikes . | . . . . . Melee Attacks 1 | . . . . 1 Impact . | . . . . . Slashing . | . . . . . Piercing . | . . . . . Sneak Attacks . | . . . . . Combat Hostiles . | . . . . . Follow-up Attacks . | . . . . . Damage Inflicted 2062 | 183 709 453 108 609 Guns 822 | 183 622 . . 17 Cannons . | . . . . . Explosions 1226 | . 87 453 108 578 Melee . | . . . . . Ramming 14 | . . . . 14 Kinetic 822 | 183 622 . . 17 Thermal 87 | . 87 . . . Explosive 1139 | . . 453 108 578 Electromagnetic . | . . . . . Impact . | . . . . . Slashing . | . . . . . Piercing . | . . . . . Highest Corruption . | . . . . . Average Corruption . | . . . . . Corruption Purged . | . . . . . Corruption Blocked . | . . . . . Overload Shots . | . . . . . Overflow Damage 80 | . 32 13 . 35 Projectiles . | . . . . . Explosions 80 | . 32 13 . 35 Melee . | . . . . . Knockbacks . | . . . . . Impact . | . . . . . Kinetic . | . . . . . Secondary . | . . . . . Self-Inflicted Damage 198 | . 80 . . 118 Shots 6 | . 1 . . 5 Rammed 3 | . . . . 3 Targets Rammed 8 | . . . . 8 Kicked 5 | . . . . 5 Crushed . | . . . . . Highest Temperature 25 | . 25 1 . 10 Average Temperature 7 | . 7 1 . 6 Received Heat Transfer 373 | . 165 39 54 115 Siege Activations . | . . . . . Martial Activations . | . . . . . Shielding Activations . | . . . . . Robots Disrupted . | . . . . . Combat Hostiles . | . . . . . Robots Corrupted . | . . . . . Combat Hostiles . | . . . . . Parts Fried . | . . . . . Impact Corruptions . | . . . . . Robots Melted . | . . . . . Combat Hostiles . | . . . . . Parts Melted . | . . . . . Heat Transferred 50 | . 50 . . . Parts Sabotaged . | . . . . . Parts Stolen . | . . . . . Parts Stripped . | . . . . . Power Chain Reactions . | . . . . . Alert | -11 -10 -9 -8 -8 ------- Run | Yrd Mat Mat Mat Gar Maximum Alert Level 1 | . . . . 1 Low Security (%) 94 | 100 100 100 100 54 Level 1 5 | . . . . 45 Level 2 . | . . . . . Level 3 . | . . . . . Level 4 . | . . . . . Level 5 . | . . . . . High Security . | . . . . . Max Security . | . . . . . Peak Influence 225 | 10 185 165 123 225 Initial 76 | . . 76 67 75 Average 73 | 1 73 45 86 185 Influence Increases 963 | 25 404 215 99 220 Destroy 0b10 Robot/C 480 | . 180 120 60 120 Destroy 0b10 Robot/NC 55 | 25 30 . . . Destroy Leader 74 | . 44 20 10 . Successful Hack 33 | . 17 8 8 . Disable Machine 45 | . 45 . . . Destroy Structure 111 | . 28 7 6 70 Partial Spotted 15 | . . . 15 . Lose Combat Pursuer 150 | . 60 60 . 30 Influence Decreases 738 | 25 222 237 143 111 Entered New Map 240 | . . 106 93 41 Time Decay 347 | 25 182 110 30 . Lost Part 141 | . 40 11 20 70 Lost Ally 10 | . . 10 . . Squads Dispatched 2 | . 1 . 1 . Investigation . | . . . . . Extermination . | . . . . . Reinforcement 2 | . 1 . 1 . Assault . | . . . . . Garrison . | . . . . . Intercept . | . . . . . Searches Triggered . | . . . . . Construction Impeded . | . . . . . Haulers Reinforced . | . . . . . Active Scanning Responses . | . . . . . Cargo Convoy Interrupts . | . . . . . Stealth | -11 -10 -9 -8 -8 --------- Run | Yrd Mat Mat Mat Gar Distress Signals 3 | . 1 2 . . Communications Jammed . | . . . . . Distress Signals . | . . . . . Times Spotted 60 | . 14 17 16 13 Peak Tracking Total 14 | . 5 12 14 5 Tactical Retreats 8 | . 3 3 . 2 Traps | -11 -10 -9 -8 -8 ------- Run | Yrd Mat Mat Mat Gar Traps Triggered 5 | . . . . 5 Indirectly . | . . . . . Trap Hack Attempts . | . . . . . Triggered . | . . . . . Disarmed . | . . . . . Reprogrammed . | . . . . . Reused . | . . . . . Traps Extracted . | . . . . . Installed . | . . . . . Triggered . | . . . . . Machines | -11 -10 -9 -8 -8 ---------- Run | Yrd Mat Mat Mat Gar Machines Disabled 3 | . 3 . . . Max in Single Turn 3 | . 3 . . . Garrison Relay 1 | . . . . 1 Machines Repaired . | . . . . . Machines Dismantled . | . . . . . Machines Sabotaged . | . . . . . Overloaded Fab Kills . | . . . . . Hacking | -11 -10 -9 -8 -8 --------- Run | Yrd Mat Mat Mat Gar Machines Accessed 10 | . 3 3 2 2 Terminals 9 | . 3 3 1 2 Fabricators . | . . . . . Repair Stations . | . . . . . Recycling Units . | . . . . . Scanalyzers . | . . . . . Garrison Access 1 | . . . 1 . Total Hacks 27 | . 11 8 4 4 Successful 9 | . 3 4 2 . Failed 18 | . 8 4 2 4 Catastrophic 5 | . 2 2 1 . Database Lockouts . | . . . . . Manual 25 | . 11 7 3 4 Terminals 26 | . 11 8 3 4 Fabricators . | . . . . . Repair Stations . | . . . . . Recycling Units . | . . . . . Scanalyzers . | . . . . . Garrison Access 1 | . . . 1 . Terminal Hacks 4 | . 2 1 1 . Emergency Access Points 1 | . . 1 . . Terminal Index 2 | . 1 . 1 . Registered Components 1 | . 1 . . . Fabricator Hacks . | . . . . . Repair Station Hacks . | . . . . . Recycling Unit Hacks . | . . . . . Scanalyzer . | . . . . . Garrison Access Hacks 1 | . . . 1 . Unlock Access 1 | . . . 1 . Unauthorized Hacks 4 | . 1 3 . . Terminals 4 | . 1 3 . . Assimilate 2 | . . 2 . . Operators 2 | . 1 1 . . Fabricators . | . . . . . Repair Stations . | . . . . . Recycling Units . | . . . . . Scanalyzers . | . . . . . Garrison Access . | . . . . . Data Cores Recovered . | . . . . . Used . | . . . . . Hacking Detections 10 | . 3 3 2 2 Full Trace Events . | . . . . . Feedback Events . | . . . . . Feedback Blocked . | . . . . . Robot Schematics Acquired . | . . . . . Robots Built . | . . . . . Authchips . | . . . . . Time . | . . . . . Total Robot Build Rating . | . . . . . Part Schematics Acquired . | . . . . . Parts Built . | . . . . . Authchips . | . . . . . Time . | . . . . . Total Part Build Rating . | . . . . . Part Studies Acquired . | . . . . . Parts Repaired . | . . . . . Time . | . . . . . Parts Recycled . | . . . . . Recycled Matter . | . . . . . Retrieved Matter . | . . . . . Retrieved Components . | . . . . . Parts Scanalyzed . | . . . . . Part Schematics Acquired . | . . . . . Parts Damaged . | . . . . . Bothacking | -11 -10 -9 -8 -8 ------------ Run | Yrd Mat Mat Mat Gar Used RIF Installer . | . . . . . Robots Hacked . | . . . . . Non-combat . | . . . . . Combat . | . . . . . Robot Hacks Applied . | . . . . . Relay Couplers Released 3 | . . . . 3 Machine Destruction 3 | . . . . 3 Fabnet Peak Effective % . | . . . . . Robots Rewired . | . . . . . Allies Hacked . | . . . . . Hacks Repelled . | . . . . . Allies | -11 -10 -9 -8 -8 -------- Run | Yrd Mat Mat Mat Gar Total Allies 2 | . . 2 . . Largest Group 1 | . . 1 . . Highest-Rated Group 10 | . . 10 . . Highest-Rated Ally 10 | . . 10 . . Total Orders . | . . . . . Ally Attacks . | . . . . . Total Damage . | . . . . . Kills . | . . . . . Allies Corrupted . | . . . . . Allies Melted . | . . . . . Intel | -11 -10 -9 -8 -8 ------- Run | Yrd Mat Mat Mat Gar Active Infowar (turns) 239 | 23 216 . . . Seismic 239 | 23 216 . . . Robot Analysis Total . | . . . . . Derelict Logs Recovered . | . . . . . Drone Launches . | . . . . . Drone Recoveries . | . . . . . Exploration | -11 -10 -9 -8 -8 ------------- Run | Yrd Mat Mat Mat Gar Turns Passed 1024 | 128 476 223 64 133 Spaces Moved 1130 | 81 421 344 134 150 Core 16 | 5 . . . 11 Treads . | . . . . . Legs 23 | . . . . 23 Wheels 172 | 76 96 . . . Hover 89 | . 89 . . . Flight 830 | . 236 344 134 116 Fastest Speed 31 | 50 37 31 31 31 Average Speed 50 | 96 62 32 32 48 Slowest Speed 180 | 100 180 34 37 120 Overloaded Moves . | . . . . . Propulsion Burnouts . | . . . . . Robots Hopped 9 | . 4 4 1 . Potential Cave-ins . | . . . . . Cave-ins Triggered . | . . . . . Exploration Rate (%) 26 | 5 33 40 21 33 Regions Visited 4 Branch Regions . Pre-discovered Areas . | . . . . . Known Exits Taken 1 | . . . 1 . Unknown Exits Taken 3 | 1 1 1 . . Scrap Searched . | . . . . . Spaces Dug . | . . . . . Terrain Destroyed 131 | . 36 6 9 80 Melee . | . . . . . Projectile . | . . . . . AOE 131 | . 36 6 9 80 Terrain Rammed . | . . . . . Walls Destroyed . | . . . . . Machines Disabled . | . . . . . Actions | -11 -10 -9 -8 -8 --------- Run | Yrd Mat Mat Mat Gar Total 1421 | 103 522 447 152 197 Wait 124 | . 10 101 13 . Move 1109 | 80 412 335 132 150 Hop 9 | . 4 4 1 . Pick Up 15 | 1 11 1 2 . Fast Attach 17 | 7 4 1 1 4 Attach 9 | . 2 3 2 2 Detach 5 | . 1 . . 4 Swap 1 | . 1 . . . Drop 8 | . 8 . . . Fire 99 | 15 69 2 1 12 Melee 1 | . . . . 1 Ram 3 | . . . . 3 Kick 5 | . . . . 5 Crush . | . . . . . Escape Stasis 16 | . . . . 16 Rewire . | . . . . . Trap . | . . . . . Miscellaneous . | . . . . . Route ------- -11/Scrapyard -10/Materials -9/Materials -8/Materials -8/Garrison (discovered 1 exit: [*Fac]) History --------- Turn | Location | Event 12 | -11/Scrapyard | Discovered new exit (range 16) 129 | -11/Scrapyard | Entered Materials 300 | -10/Materials | Build established: Mutant 507 | -10/Materials | Discovered new exit (range 15) 581 | -10/Materials | Core integrity fell below 50% 605 | -10/Materials | Entered another Materials area 605 | -9/Materials | Evolved 2 slots: Propulsion x2 827 | -9/Materials | Discovered new exit (range 4) 828 | -9/Materials | Entered another Materials area 828 | -8/Materials | Evolved 2 slots: Power x1, Propulsion x1 891 | -8/Materials | Lost 3 parts (1p2n) 892 | -8/Materials | Identified exit to Garrison 892 | -8/Materials | Entered Garrison 954 | -8/Garrison | Discovered new exit (range 13) 964 | -8/Garrison | Triggered checkpoint 1001 | -8/Garrison | Lost 6 parts (1p3n2w) 1016 | -8/Garrison | Garrison Relay disabled 1017 | -8/Garrison | Core integrity fell below 50% 1022 | -8/Garrison | Core integrity fell below 20% 1025 | -8/Garrison | Destroyed by H-55 Commando with Gauss Rifle Last Messages --------------- 01014_ Slammed into H-55 Commando. 01015_ Penetrated by Slug. 01015_ Slammed into Y-45 Defender. 01016_ Penetrated by Slug. 01016_ Garrison Relay disabled. 01016_ Relay Coupler [Sentry] tumbles out of relay unit. 01016_ Relay Coupler [NC] tumbles out of relay unit. 01016_ Relay Coupler [Hunter] tumbles out of relay unit. 01017_ The unstable cave ceiling collapses. 01018_ Penetrated by Slug. 01019_ Acquired Relay Coupler [NC]. 01019_ Relay Coupler [NC] fries itself. 01021_ Slammed into Y-45 Defender. 01021_ Penetrated by Slug. 01022_ Acquired Relay Coupler [Hunter]. 01022_ Relay Coupler [Hunter] fries itself. 01022_ Slug penetrates H-55 Commando. 01022_ Y-45 Defender destroyed. 01023_ Acquired 60 matter. 01025_ Slug penetrates Earth. Map ----- +----------------------------------------------------+ | | | | | | | | | | | | | ?????????????????????????????????????????????????? | | ?????????????????????????????????????????????????? | | ?????????????????????????????????????????????????? | | ?????????????????????????????????????????????????? | | ?????????????????????????????????????????????????? | | ?????????????????????????????????????????????????? | | ?????????????????????????????????????????????????? | | ?????????????????????????????????????????????????? | | ?????????????????????????????????????????????????? | | ?????????????????????????????????????????????????? | | ?????????????????????????????????????????????????? | | ?????????????????????????????????????????????????? | | ?????????????????????????????????????????????????? | | ?????????????????????????????????????????????????? | | ?????????????????????????????????#####???????????? | | ??????????????????????????######## ##??????????? | | ??????????????????????????#"" ## #??????????? | | ????????????????????????#+##h= ### #??????????? | | ????????????????????????# h!!! # #??????????? | | ????????????????????????#@ ############??????????? | | ??????????????????????### ##???????####?????????? | | ?????????????????#+#### #???????# ?????????? | | ?????????????????# #???????#